Cogmind - Beta 14 @@@ ROGUE MODE // 2025.03.08 @ 09:34:14 Player: LightKnight Result: Destroyed by G-47 Trooper with Particle Gun Performance ------------- Evolutions (2) 1000 Regions Visited (6) 1200 Robots Destroyed (16) 80 Value Destroyed (503) 503 Prototype IDs (27) 540 Alien Tech Used (0) 0 Bonus (552) 552 TOTAL SCORE: 3875 Bonus ------- Follower Combat Kills 52 Entered Garrisons 200 Aligned with FarCom 300 Cogmind --------- Core Integrity 0/550 Matter 300/300 Energy 100/100 System Corruption 4% Temperature Cool (8) Movement Core (50) Location -8/Garrison Parts ------- > --- POWER (1) -------- (None) > --- PROPULSION (4) --- (None) > --- UTILITY (4) ------ Terrain Scan Processor System Shield > --- WEAPON (2) ------- (None) > --- INVENTORY (5) ---- Improved Sensor Array Relay Coupler [Grunt] (23) Ion Cannon Shock Bomb Launcher Peak State ------------ > --- POWER ------------ (None) > --- PROPULSION ------- Combat Gravmag System Combat Gravmag System Flight Unit > --- UTILITY ---------- Terrain Scan Processor System Shield System Shield Chronowheel > --- WEAPON ----------- Heavy Flail > --- INVENTORY -------- Improved Sensor Array Advanced Hacking Suite Relay Coupler [Grunt] Ion Cannon Shock Bomb Launcher [Rating: 38] Favorites ----------- Power Ion Engine Engine Ion Engine Propulsion Aluminum Leg Leg Aluminum Leg Hover Unit Combat Gravmag System Flight Unit Flight Unit Utility Small Storage Unit Device Trap Scanner Storage Small Storage Unit Processor Terrain Scan Processor Hackware System Shield Weapon Particle Gun Energy Gun Particle Gun Energy Cannon EM Pulse Cannon Ballistic Gun Assault Rifle Launcher Shock Bomb Launcher Impact Weapon Heavy Flail Build | -11 -10 -10 -10 -9 -8 -8 ------- Run | Yrd Mat Min Exi Min Mat Gar Slots Evolved 4 | . . . . . 4 . Power . | . . . . . . . Propulsion 2 | . . . . . 2 . Utility 2 | . . . . . 2 . Weapon . | . . . . . . . Parts Attached 23 | 1 . 6 . 8 3 5 Power . | . . . . . . . Engine . | . . . . . . . Core . | . . . . . . . Reactor . | . . . . . . . Propulsion 6 | . . . . 3 1 2 Treads . | . . . . . . . Leg . | . . . . . . . Wheel . | . . . . . . . Hover 2 | . . . . . . 2 Flight 4 | . . . . 3 1 . Utility 10 | . . 3 . 3 2 2 Device 6 | . . 3 . 2 . 1 Storage . | . . . . . . . Processor 1 | . . . . . 1 . Hackware 3 | . . . . 1 1 1 Protection . | . . . . . . . Artifact . | . . . . . . . Weapon 7 | 1 . 3 . 2 . 1 Energy Gun 2 | 1 . 1 . . . . Energy Cannon 2 | . . 1 . . . 1 Ballistic Gun 1 | . . 1 . . . . Ballistic Cannon . | . . . . . . . Launcher 1 | . . . . 1 . . Special Weapon . | . . . . . . . Impact Weapon 1 | . . . . 1 . . Slashing Weapon . | . . . . . . . Piercing Weapon . | . . . . . . . Special Melee Weapon . | . . . . . . . Unidentified Prototypes . | . . . . . . . Corrupted Parts 1 | . . . . 1 . . System Corruption 8 | . . . . 8 . . Parts Lost 9 | . . 1 . 2 . 6 Power . | . . . . . . . Propulsion 4 | . . . . 2 . 2 Utility 3 | . . . . . . 3 Weapon 2 | . . 1 . . . 1 Highest Loss Streak 2 | . . 1 . 1 . 2 To Critical Strikes . | . . . . . . . Average Slot Usage (%) 85 | . 85 99 100 72 47 47 Engine 10 | . 14 14 14 12 . . Leg 19 | . 28 28 28 4 . . Flight 4 | . . . . 20 13 9 Device 9 | . . 13 14 3 . . Storage 9 | . 14 14 14 2 . . Processor 1 | . . . . . 7 9 Hackware 4 | . . . . 11 16 17 Energy Gun 13 | . 14 22 14 3 . . Energy Cannon 4 | . . 2 14 3 . . Ballistic Gun 1 | . 14 3 . . . . Impact Weapon 2 | . . . . 10 9 6 Peak Build Rating 38 | 6 6 13 15 16 17 38 Average Rating 12 | 6 6 9 13 11 14 17 On Entrance 10 | 6 6 6 13 15 9 17 Naked Turns . | . . . . . . . Heaviest Build 21 | 13 13 21 21 21 3 4 Greatest Support 28 | 20 20 20 20 20 9 28 Greatest Overweight (x) 6 | . . 1 1 6 . . Average Overweight (x) . | . . . 1 . . . Largest Inventory Capacity 8 | 8 8 8 8 8 5 5 Average Capacity 7 | 8 8 8 8 5 5 5 Most Carried 8 | 6 6 8 8 8 5 5 Average Carried 6 | 6 6 7 7 5 4 4 Final Capacity 8 | 8 8 8 8 5 5 5 Final Carried 8 | 6 6 7 8 5 5 4 Class Distribution -------------------- 79% | Mutant 20% | Hacker-Mutant Dominant Class ---------------- Mutant | -10/Materials Mutant | -10/Mines Mutant | -10/Exiles Mutant | -9/Mines Hacker-Mutant | -8/Materials Hacker-Mutant | -8/Garrison Resources | -11 -10 -10 -10 -9 -8 -8 ----------- Run | Yrd Mat Min Exi Min Mat Gar Matter Collected 455 | 210 . 79 . 116 26 24 Remotely . | . . . . . . . Salvage Created 419 | . . 236 . 157 26 . Parts 21 | . . 8 . 13 . . Haulers Intercepted . | . . . . . . . Recyclers Shooed . | . . . . . . . Parts Field Recycled . | . . . . . . . Retrieved Matter . | . . . . . . . Parts Self-Destructed . | . . . . . . . Prevented . | . . . . . . . Kills | -11 -10 -10 -10 -9 -8 -8 ------- Run | Yrd Mat Min Exi Min Mat Gar Combat Hostiles Destroyed 14 | . . 4 . 10 . . Melee 1 | . . . . 1 . . Guns 6 | . . 4 . 2 . . Cannons 1 | . . . . 1 . . AOE 4 | . . . . 4 . . Classes Destroyed 4 | . . 2 . 1 1 . Recycler 1 | . . 1 . . . . Watcher 1 | . . . . . 1 . Swarmer 10 | . . . . 10 . . Grunt 4 | . . 4 . . . . Best Kill Streak 6 | . . 3 . 6 1 . Combat Bots Only 6 | . . 2 . 6 . . Max Kills in Single Turn 2 | . . 1 . 2 1 . Gunslinging . | . . . . . . . Exploded 2 | . . . . 2 . . Melee 1 | . . . . 1 . . Uniques/NPCs Destroyed . | . . . . . . . Combat | -11 -10 -10 -10 -9 -8 -8 -------- Run | Yrd Mat Min Exi Min Mat Gar Hostile Shots Fired 182 | . . 32 . 48 . 102 Missed 66 | . . 8 . 20 . 38 Damage Taken 1471 | . . 307 . 260 . 904 Core 773 | . . 116 . 104 . 553 Absorbed by Shields 51 | . . . . . . 51 Core Remaining (%) 56 | 100 . . . 12 . . Volleys Fired 27 | . . 20 . 6 . 1 Largest 2 | . . 2 . 2 . 1 Hottest 128 | . . 60 . 128 . 60 Shots Fired 51 | . . 40 . 10 . 1 Gun 44 | . . 40 . 4 . . Cannon 5 | . . . . 4 . 1 Launcher 2 | . . . . 2 . . Special . | . . . . . . . Kinetic 20 | . . 20 . . . . Thermal 25 | . . 20 . 4 . 1 Explosive . | . . . . . . . Electromagnetic 6 | . . . . 6 . . Robot Hit Streak 17 | . . 17 . 5 . . Robot Miss Streak 3 | . . 3 . 3 . . Penetration Max . | . . . . . . . Secondary Targets . | . . . . . . . Shots Hit Robots 41 | . . 30 . 9 1 1 Core Hits 20 | . . 12 . 8 . . Critical Kills . | . . . . . . . Critical Parts Destroyed . | . . . . . . . Critical Strikes . | . . . . . . . Melee Attacks 34 | . . . . 14 1 19 Impact 34 | . . . . 14 1 19 Slashing . | . . . . . . . Piercing . | . . . . . . . Sneak Attacks . | . . . . . . . Combat Hostiles . | . . . . . . . Follow-up Attacks . | . . . . . . . Damage Inflicted 898 | . . 327 . 477 37 57 Guns 362 | . . 327 . 35 . . Cannons 22 | . . . . 22 . . Explosions 210 | . . . . 210 . . Melee 280 | . . . . 210 37 33 Ramming 24 | . . . . . . 24 Kinetic 163 | . . 163 . . . . Thermal 312 | . . 164 . 148 . . Explosive . | . . . . . . . Electromagnetic 119 | . . . . 119 . . Impact 280 | . . . . 210 37 33 Slashing . | . . . . . . . Piercing . | . . . . . . . Highest Corruption 8 | . . . . 8 . 4 Average Corruption 7 | . . . . 8 . 4 Corruption Purged . | . . . . . . . Corruption Blocked . | . . . . . . . Effects 3 | . . . . 3 . . Matter Fused 1 | . . . . 1 . . Data Loss (minor) 2 | . . . . 2 . . Overload Shots . | . . . . . . . Overflow Damage 82 | . . . . 80 2 . Projectiles . | . . . . . . . Explosions 3 | . . . . 3 . . Melee 79 | . . . . 77 2 . Knockbacks . | . . . . . . . Impact . | . . . . . . . Kinetic . | . . . . . . . Secondary . | . . . . . . . Self-Inflicted Damage 58 | . . . . 46 . 12 Shots 3 | . . . . 3 . . Rammed 3 | . . . . . . 3 Targets Rammed 3 | . . . . . . 3 Kicked . | . . . . . . . Crushed . | . . . . . . . Highest Temperature 226 | . . 84 . 226 . . Average Temperature 76 | . . 43 . 111 . . Received Heat Transfer 317 | . . 192 . . . 125 Siege Activations . | . . . . . . . Robots Corrupted 3 | . . . . 2 1 . Combat Hostiles 2 | . . . . 2 . . Parts Fried 7 | . . . . 4 3 . Impact Corruptions 5 | . . . . 4 1 . Robots Melted . | . . . . . . . Combat Hostiles . | . . . . . . . Parts Melted . | . . . . . . . Heat Transferred 549 | . . 375 . 174 . . Parts Sabotaged . | . . . . . . . Parts Stolen . | . . . . . . . Parts Stripped . | . . . . . . . Power Chain Reactions 1 | . . . . 1 . . Alert | -11 -10 -10 -10 -9 -8 -8 ------- Run | Yrd Mat Min Exi Min Mat Gar Peak Influence 487 | . . 95 . 370 194 487 Initial 144 | . . . . . 144 126 Average 102 | . . 30 . 172 163 240 Maximum Alert Level 2 | . . . . 1 . 2 Low Security (%) 82 | 100 100 100 . 53 100 47 Level 1 14 | . . . . 46 . 38 Level 2 3 | . . . . . . 14 Level 3 . | . . . . . . . Level 4 . | . . . . . . . Level 5 . | . . . . . . . High Security . | . . . . . . . Max Security . | . . . . . . . Squads Dispatched . | . . . . . . . Investigation . | . . . . . . . Extermination . | . . . . . . . Reinforcement . | . . . . . . . Assault . | . . . . . . . Garrison . | . . . . . . . Intercept . | . . . . . . . Searches Triggered . | . . . . . . . Construction Impeded . | . . . . . . . Haulers Reinforced . | . . . . . . . Active Scanning Responses . | . . . . . . . Cargo Convoy Interrupts . | . . . . . . . Stealth | -11 -10 -10 -10 -9 -8 -8 --------- Run | Yrd Mat Min Exi Min Mat Gar Distress Signals . | . . . . . . . Communications Jammed . | . . . . . . . Distress Signals . | . . . . . . . Times Spotted 52 | . . 4 . 22 2 24 Peak Tracking Total 14 | . . 2 . 8 2 14 Tactical Retreats 9 | . . . . 3 . 6 Traps | -11 -10 -10 -10 -9 -8 -8 ------- Run | Yrd Mat Min Exi Min Mat Gar Traps Triggered 4 | . . . . . . 4 Indirectly . | . . . . . . . Trap Hack Attempts . | . . . . . . . Triggered . | . . . . . . . Disarmed . | . . . . . . . Reprogrammed . | . . . . . . . Reused . | . . . . . . . Traps Extracted . | . . . . . . . Installed . | . . . . . . . Triggered . | . . . . . . . Machines | -11 -10 -10 -10 -9 -8 -8 ---------- Run | Yrd Mat Min Exi Min Mat Gar Machines Disabled 2 | . . . . . . 2 Max in Single Turn 1 | . . . . . . 1 Garrison Relay 1 | . . . . . . 1 Machines Repaired . | . . . . . . . Machines Dismantled . | . . . . . . . Machines Sabotaged . | . . . . . . . Overloaded Fab Kills . | . . . . . . . Hacking | -11 -10 -10 -10 -9 -8 -8 --------- Run | Yrd Mat Min Exi Min Mat Gar Machines Accessed 12 | . . 2 1 . 6 3 Terminals 9 | . . 1 . . 5 3 Fabricators . | . . . . . . . Repair Stations . | . . . . . . . Recycling Units . | . . . . . . . Scanalyzers . | . . . . . . . Garrison Access 1 | . . . . . 1 . Total Hacks 31 | . . 3 1 . 18 9 Successful 12 | . . 1 1 . 9 1 Failed 19 | . . 2 . . 9 8 Catastrophic 4 | . . 1 . . 1 2 Database Lockouts . | . . . . . . . Manual 17 | . . 2 1 . 14 . Terminals 28 | . . 2 . . 17 9 Fabricators . | . . . . . . . Repair Stations . | . . . . . . . Recycling Units . | . . . . . . . Scanalyzers . | . . . . . . . Garrison Access 1 | . . . . . 1 . Terminal Hacks 7 | . . 1 1 . 4 1 Prototype ID Bank 2 | . . . . . 2 . Open Door 1 | . . 1 . . . . Branch Access Points 1 | . . . . . 1 . Emergency Access Points 1 | . . . . . . 1 Locate Traps 1 | . . . . . 1 . Derelict Proto ID Bank 1 | . . . 1 . . . Fabricator Hacks . | . . . . . . . Repair Station Hacks . | . . . . . . . Recycling Unit Hacks . | . . . . . . . Scanalyzer . | . . . . . . . Garrison Access Hacks 1 | . . . . . 1 . Unlock Access 1 | . . . . . 1 . Unauthorized Hacks 4 | . . . . . 4 . Terminals 4 | . . . . . 4 . Assimilate 3 | . . . . . 3 . Botnet 1 | . . . . . 1 . Fabricators . | . . . . . . . Repair Stations . | . . . . . . . Recycling Units . | . . . . . . . Scanalyzers . | . . . . . . . Garrison Access . | . . . . . . . Data Cores Recovered . | . . . . . . . Used . | . . . . . . . Hacking Detections 7 | . . 1 . . 4 2 Full Trace Events 1 | . . . . . . 1 Feedback Events . | . . . . . . . Feedback Blocked . | . . . . . . . Robot Schematics Acquired . | . . . . . . . Robots Built . | . . . . . . . Authchips . | . . . . . . . Time . | . . . . . . . Total Robot Build Rating . | . . . . . . . Part Schematics Acquired . | . . . . . . . Parts Built . | . . . . . . . Authchips . | . . . . . . . Time . | . . . . . . . Total Part Build Rating . | . . . . . . . Parts Repaired . | . . . . . . . Time . | . . . . . . . Parts Recycled . | . . . . . . . Recycled Matter . | . . . . . . . Retrieved Matter . | . . . . . . . Retrieved Components . | . . . . . . . Parts Scanalyzed . | . . . . . . . Part Schematics Acquired . | . . . . . . . Parts Damaged . | . . . . . . . Bothacking | -11 -10 -10 -10 -9 -8 -8 ------------ Run | Yrd Mat Min Exi Min Mat Gar Used RIF Installer . | . . . . . . . Robots Hacked . | . . . . . . . Non-combat . | . . . . . . . Combat . | . . . . . . . Robot Hacks Applied . | . . . . . . . Relay Couplers Released 3 | . . . . . . 3 Machine Destruction 3 | . . . . . . 3 Fabnet Peak Effective % . | . . . . . . . Robots Rewired 6 | . . . . . . 6 Allies Hacked . | . . . . . . . Hacks Repelled . | . . . . . . . Allies | -11 -10 -10 -10 -9 -8 -8 -------- Run | Yrd Mat Min Exi Min Mat Gar Total Allies 7 | . . . . . 1 6 Largest Group 3 | . . . . . 1 3 Highest-Rated Group 48 | . . . . . 26 48 Highest-Rated Ally 26 | . . . . . 26 26 Total Orders . | . . . . . . . Ally Attacks 14 | . . . . . . 14 Total Damage 157 | . . . . . . 157 Kills 2 | . . . . . . 2 Allies Corrupted . | . . . . . . . Allies Melted . | . . . . . . . Intel | -11 -10 -10 -10 -9 -8 -8 ------- Run | Yrd Mat Min Exi Min Mat Gar Robot Analysis Total . | . . . . . . . Derelict Logs Recovered 2 | . . 2 . . . . Drone Launches . | . . . . . . . Drone Recoveries . | . . . . . . . Exploration | -11 -10 -10 -10 -9 -8 -8 ------------- Run | Yrd Mat Min Exi Min Mat Gar Turns Passed 2011 | 9 27 907 418 213 84 353 Spaces Moved 1693 | 7 23 507 220 280 179 477 Core 127 | . . . . 1 . 126 Treads . | . . . . . . . Legs 767 | 7 23 507 220 10 . . Wheels . | . . . . . . . Hover 39 | . . . . . . 39 Flight 760 | . . . . 269 179 312 Fastest Speed 34 | 120 120 120 190 37 34 34 Average Speed 89 | 120 120 131 190 47 37 43 Slowest Speed 440 | 120 120 190 190 440 40 80 Overloaded Moves . | . . . . . . . Propulsion Burnouts . | . . . . . . . Robots Hopped 3 | . . . . . . 3 Cave-ins Triggered . | . . . . . . . Exploration Rate (%) 38 | 1 6 97 43 44 19 61 Regions Visited 6 Branch Regions 3 Pre-discovered Areas 2 | . . 2 . . . . Known Exits Taken 1 | . . . . . 1 . Unknown Exits Taken 5 | 1 1 1 1 1 . . Scrap Searched 1 | . . . . 1 . . Spaces Dug 4 | . . . . 2 . 2 Terrain Destroyed 12 | . . . . 10 . 2 Melee 4 | . . . . 2 . 2 Projectile . | . . . . . . . AOE 8 | . . . . 8 . . Terrain Rammed . | . . . . . . . Walls Destroyed . | . . . . . . . Machines Disabled . | . . . . . . . Actions | -11 -10 -10 -10 -9 -8 -8 --------- Run | Yrd Mat Min Exi Min Mat Gar Total 2079 | 7 22 713 220 333 193 591 Wait 196 | . . 166 . 12 9 9 Move 1679 | 6 22 506 219 279 178 469 Hop 3 | . . . . . . 3 Pick Up 13 | . . 7 1 2 1 2 Fast Attach 12 | . . 2 . 5 3 2 Attach 7 | . . 1 . 3 . 3 Detach 5 | . . 1 . 3 . 1 Swap 4 | 1 . 3 . . . . Drop 18 | . . 7 . 9 1 1 Fire 27 | . . 20 . 6 . 1 Melee 34 | . . . . 14 1 19 Ram 3 | . . . . . . 3 Kick . | . . . . . . . Crush . | . . . . . . . Escape Stasis 54 | . . . . . . 54 Rewire 24 | . . . . . . 24 Trap . | . . . . . . . Miscellaneous . | . . . . . . . Route ------- -11/Scrapyard -10/Materials -10/Mines (discovered 3 exits: [*Mat x2] / *Exi) -10/Exiles -9/Mines -8/Materials (discovered 2 exits: Sto / Gar) -8/Garrison (discovered 1 exit: [*Mat]) History --------- Turn | Location | Event 3 | -11/Scrapyard | Discovered new exit (range 2) 10 | -11/Scrapyard | Entered Materials 21 | -10/Materials | Discovered new exit (range 13) 37 | -10/Materials | Entered Mines 195 | -10/Mines | Discovered new exit (range 10) 308 | -10/Mines | Build established: Mutant 329 | -10/Mines | Deemed a non-threat by the Exiles lab entrance 331 | -10/Mines | Discovered new exit (range 5) 471 | -10/Mines | Discovered new exit (range 5) 472 | -10/Mines | Learned location of Storage (-8) 575 | -10/Mines | Learned location of Zion (-6) 608 | -10/Mines | Met a Derelict who couldn't figure out how to use a Trap Extractor 944 | -10/Mines | Entered Exiles 990 | -10/Exiles | Met 8R-AWN 1022 | -10/Exiles | Met EX-HEX 1076 | -10/Exiles | Met EX-BIN 1102 | -10/Exiles | Aligned with FarCom system 1104 | -10/Exiles | Given EX-Vault access code 1152 | -10/Exiles | Opened EX-Vault 1161 | -10/Exiles | Found Chronowheel 1198 | -10/Exiles | Warned to stay clear of 0b10 Research branches 1333 | -10/Exiles | Discovered new exit (range 14) 1362 | -10/Exiles | Left Exiles lab with Chronowheel 1362 | -10/Exiles | Entered Mines 1375 | -9/Mines | Core integrity fell below 50% 1504 | -9/Mines | Core integrity fell below 20% 1570 | -9/Mines | Discovered new exit (range 5) 1575 | -9/Mines | Entered Materials 1575 | -8/Materials | Evolved 4 slots: Propulsion x2, Utility x2 1576 | -8/Materials | Identified exit to Storage 1659 | -8/Materials | Identified exit to Garrison 1659 | -8/Materials | Entered Garrison 1659 | -8/Garrison | Accompanied by 1 ally 1779 | -8/Garrison | Triggered checkpoint 1825 | -8/Garrison | Garrison Relay disabled 1851 | -8/Garrison | Activated Chronowheel 1874 | -8/Garrison | Discovered new exit (range 10) 1881 | -8/Garrison | Attempted to access garrison exit controls, blocked by remote lockdown 1907 | -8/Garrison | Triggered checkpoint 1929 | -8/Garrison | Core integrity fell below 50% 1935 | -8/Garrison | Triggered checkpoint 1954 | -8/Garrison | Core integrity fell below 20% 2012 | -8/Garrison | Destroyed by G-47 Trooper with Particle Gun Last Messages --------------- 01985_ G-47 Trooper rewired. 01986_ Attempting to rewire G-47 Trooper. 01988_ Trooper 3a destroyed. 01988_ Attempting to rewire G-47 Trooper. 01994_ G-47 Trooper rewired. 01995_ Attempting to rewire G-47 Trooper. 02001_ Trooper 3d destroyed. 02001_ Attempting to rewire G-47 Trooper. 02005_ G-47 Trooper rewired. 02008_ Slammed into P-60 Hacker. 02009_ Drone sends a signal. 02009_ Acquired 24 matter. 02010_ Slammed into G-47 Trooper. 02010_ Adv. Hacking Suite destroyed. 02010_ System corrupted by crushing effect (+4). 02010_ P-60 Hacker fails to hack Trooper 3f. 02011_ Slammed into G-47 Trooper. 02012_ Chain reaction triggered in Lgt. Nuclear Core. 02012_ Trooper 3e destroyed. Map ----- +----------------------------------------------------+ | ???????????????????????????????????????? | | ???????????????????????????????????????? | | ???????????????????????????????????????? | | ???????????????????????????????????????? | | ???????????????????????????????????????? | | ???????????????????????????????????????? | | ???????????????????????????????????????? | | ???????????????????????????????????????? | | ???????????????????????????????????????? | | ????????????????????????h+?????????????? | | ????????????????????????h??????????????? | | ???????????????????????????????????????? | | ???????????????????????????????????????? | | ???????????????????????????????????????? | | ???????????????????????????????????????? | | ???????????????????????????????????????? | | ???????+???????????????????????????????? | | ???????+ ??????????? ?b+?????????????? | | ???????+ #?????????? ?b??????????????? | | ???????+ #?????????? ????????????????? | | ???????# #?????????? ????????????????? | | ???????# #?????????? ????????????????? | | ???????# #?????????? ????????????????? | | ???????# #?????????? ##?????#####????? | | ???????# #?????????# " #####;[ #????? | | ???????# #?????????# "g@gg%=pg= #????? | | ???????# #?????????# " ####s;=%*#????? | | ???????# #?????????# ##???#!#####????? | | ???????# #?????????# #????#%#????????? | | ???????# #?????????# #????#!#????????? | | ???????# #?????????# #????#[#????????? | | ??###### ########### ######n#????????? | | + YYhpss!#????????? | | ??# #### ##################*#????????? | | ??# #??# #????????????????#=#????????? | | ??# #??# #??????????????### ####?????? | | ??# #??# #??????????????#" "#?????? | | ??# #??# #??????????????#" "#?????? | | ### #### #??????????????#""""""#?????? | | #??????????????########?????? | | #???????????????????????????? | | #???????????????????????????? | | ############???????????????????????????? | | ???????????????????????????????????????? | | ???????????????????????????????????????? | | ???????????????????????????????????????? | | ???????????????????????????????????????? | | ???????????????????????????????????????? | | ???????????????????????????????????????? | | #+#######??????????????????????????????? | +----------------------------------------------------+ Best States ------------- Heat Dissipation 39 Energy Generation 10 Energy Capacity 250 Matter Stores 300 Matter Capacity 300 Sight Range 16 Terrain Scan Density 85 Evasion (%) 63 Offensive Hacking 14 Defensive Hacking 20 Item Schematics ----------------- None Robot Schematics ------------------ None Fabricated ------------ Nothing Alien Tech Used ----------------- None Achievements -------------- None Challenges ------------ None Game ------ Seed CoolantPlasmaProtection Manual? 0 Play Time 00:21:48 Cumulative 185.6 hours Start 2025.03.08 @ 09:15:26 End 2025.03.08 @ 09:34:14 Sessions 1 Manual Loads 0 Difficulty Rogue Special Mode None Game No. 130 Rogue 130 Adventurer 0 Explorer 0 Win Type - Total 10 Types 10/0/0/0/0/0/0/0/0 Lore% 76 Gallery% 68 Achievement% 53 Wizard Run 0 Options --------- Layout 2 ASCII 0 Keyboard 1 Movement Arrows Keybinds 0 Fullscreen 1 Font 24/Proggy Map View 50x44 Zoom Use 0% Tactical HUD 1 Map Filters NONE Filters NONE Steam 1 RUN: 66532f6b-c8f4-4034-b9fd-110da047cfdc